fUSD/lending_fUSD_20240104
["ID","MTS","AMOUNT","RATE_DAILY","PERIOD"]
[310162723,1704384744245,-151.0,0.00036777,2]
[310162724,1704384744255,-157.40104,0.00036798,2]
[310162725,1704384744265,-366.30677295,0.00036799,9]
[310162726,1704384744274,-7253.71,0.000368,7]
[310162727,1704384744285,-1545.94948902,0.000368,30]
[310162728,1704384744295,-506.134571,0.000368,2]
[310162729,1704384744304,-300.0,0.000368,11]
[310162730,1704384744314,-151.5350356,0.00036814,14]
[310162731,1704384744323,-9537.68052863,0.00036814,2]
[310162732,1704384744333,-332.73,0.00036825,2]
[310162733,1704384744342,-150.0,0.00036848,2]
[310162734,1704384744351,-150.0,0.00036848,2]
[310162735,1704384744361,-730.52,0.00036862,7]
[310162736,1704384744371,-730.52,0.00036862,7]
[310162737,1704384744383,-151.36920845,0.00036871,14]
[310162738,1704384744392,-157.64913741,0.00036877,2]
[310162739,1704384744402,-5000.0,0.00036883,2]
[310162740,1704384744412,-105886.70859827,0.00036899,2]
[310162741,1704384744425,-1011.0,0.000369,7]
[310162742,1704384744435,-1028.0,0.000369,10]
[310162743,1704384744444,-10378.5370914,0.000369,20]
[310162744,1704384744454,-366.30677295,0.000369,9]
[310162745,1704384744466,-6026.05524857,0.000369,2]
[310162746,1704384744476,-216.0,0.000369,26]
[310162747,1704384744485,-150.0,0.000369,7]
[310162748,1704384744495,-150.0,0.000369,7]
[310162749,1704384744506,-150.0,0.000369,7]
[310162750,1704384744515,-150.0,0.000369,7]
[310162751,1704384744524,-150.0,0.000369,7]
[310162752,1704384744534,-150.0,0.000369,7]
[310162753,1704384744543,-150.0,0.000369,7]
[310162754,1704384744553,-158.26692155,0.000369,7]
[310162755,1704384744566,-151.10926239,0.000369,7]
[310162756,1704384744576,-150.0,0.000369,7]
[310162757,1704384744586,-151.12513902,0.000369,2]
[310162758,1704384744596,-3946.44329699,0.000369,2]
[310162759,1704384744606,-542.69938815,0.0003692,14]
[310162760,1704384744616,-2910.38715545,0.00036948,14]
[310162761,1704384744626,-287.88813521,0.00036956,14]
[310162762,1704384744637,-367.4272354,0.00036961,2]
[310162763,1704384744647,-151.765019,0.00036975,14]
[310162764,1704384744657,-1968.74,0.00036985,2]
[310162765,1704384744667,-3576.92,0.00036985,2]
[310162766,1704384744677,-5310.38,0.00036985,2]
[310162767,1704384744686,-5485.86,0.00036985,2]
[310162768,1704384744696,-1727.19,0.00036985,2]
[310162769,1704384744706,-981.47,0.00036985,2]
[310162770,1704384744715,-2791.07,0.00036985,2]
[310162771,1704384744725,-545.35,0.00036985,2]
[310162772,1704384744734,-3707.22,0.00036985,2]
[310162773,1704384744744,-887.38,0.00036985,2]
[310162774,1704384744753,-830.05,0.00036985,2]
[310162775,1704384744763,-1695.17,0.00036985,2]
[310162776,1704384744772,-1057.1,0.00036985,2]
[310162777,1704384744782,-742.18,0.00036985,2]
[310162778,1704384744792,-4293.88,0.00036985,2]
[310162779,1704384744802,-2374.14,0.00036985,2]
[310162780,1704384744812,-1229.49,0.00036985,2]
[310162781,1704384744822,-150.0,0.00036985,2]
[310162782,1704384744831,-229.09733946,0.00036985,2]
[310162783,1704384744841,-500.0,0.00036985,2]
[310162784,1704384744850,-2261.59,0.00036985,2]
[310162785,1704384744861,-1642.49,0.00036985,2]
[310162786,1704384744871,-500.0,0.00036985,2]
[310162787,1704384744882,-1105.69,0.00036986,2]
[310162788,1704384744894,-576.77,0.00036986,2]
[310162789,1704384744903,-1403.56,0.00036986,2]
[310162790,1704384745013,-500.0,0.00036986,2]
[310162791,1704384745023,-500.0,0.00036986,2]
[310162792,1704384745033,-500.0,0.00036986,2]
[310162793,1704384745043,-589.83,0.00036986,2]
[310162794,1704384745052,-768.69,0.00036986,2]
[310162795,1704384745061,-603.66,0.00036986,2]
[310162796,1704384745071,-599.73,0.00036986,2]
[310162797,1704384745080,-609.87,0.00036986,2]
[310162798,1704384745089,-607.88,0.00036986,2]
[310162799,1704384745099,-500.0,0.00036986,2]
[310162800,1704384745109,-911.18,0.00036986,2]
[310162801,1704384745118,-500.0,0.00036986,2]
[310162802,1704384745127,-718.24,0.00036986,2]
[310162803,1704384745138,-690.39,0.00036986,2]
[310162804,1704384745147,-712.49,0.00036986,2]
[310162805,1704384745156,-500.0,0.00036986,2]
[310162806,1704384745166,-500.0,0.00036986,2]
[310162807,1704384745175,-500.0,0.00036986,2]
[310162808,1704384745185,-582.68,0.00036986,2]
[310162809,1704384745194,-500.0,0.00036986,2]
[310162810,1704384745203,-1117.06,0.00036986,2]
[310162811,1704384745213,-500.0,0.00036986,2]
[310162812,1704384745223,-585.66,0.00036986,2]
[310162813,1704384745234,-789.66,0.00036986,2]
[310162814,1704384745243,-500.0,0.00036986,2]
[310162815,1704384745254,-500.0,0.00036986,2]
[310162816,1704384745263,-500.0,0.00036986,2]
[310162817,1704384745273,-500.0,0.00036986,2]
[310162818,1704384745282,-500.0,0.00036986,2]
[310162819,1704384745292,-500.0,0.00036986,2]
[310162820,1704384745302,-500.0,0.00036986,2]
[310162821,1704384745312,-222.24328479,0.00036986,2]
[310162822,1704384745322,-867.28,0.00036986,2]
[310162823,1704384745332,-764.44,0.00036986,2]
[310162824,1704384745341,-883.27,0.00036986,2]
[310162825,1704384745351,-173.27138657,0.00036986,2]
[310162826,1704384745362,-500.0,0.00036986,2]
[310162827,1704384745371,-842.43,0.00036986,2]
[310162828,1704384745381,-682.97,0.00036986,2]
[310162829,1704384745390,-500.0,0.00036986,2]
[310162830,1704384745400,-500.0,0.00036986,2]
[310162831,1704384745409,-670.92,0.00036986,2]
[310162832,1704384745419,-399.81174955,0.00036986,2]
[310162833,1704384745428,-1005.13,0.00036986,2]
[310162834,1704384745437,-1406.92,0.00036986,2]
[310162835,1704384745447,-725.93,0.00036986,2]
[310162836,1704384745456,-699.62,0.00036986,2]
[310162837,1704384745466,-1117.49,0.00036986,2]
[310162838,1704384745476,-674.55,0.00036986,2]
[310162839,1704384745486,-621.86446943,0.00036986,2]
[310162840,1704384745495,-677.2,0.00036986,2]
[310162841,1704384745504,-500.0,0.00036986,2]
[310162842,1704384745514,-500.0,0.00036986,2]
[310162843,1704384745523,-500.0,0.00036986,2]
[310162844,1704384745533,-782.63,0.00036986,2]
[310162845,1704384745542,-500.0,0.00036986,2]
[310162846,1704384745551,-510.31,0.00036986,2]
[310162847,1704384745562,-901.96,0.00036986,2]
[310162848,1704384745572,-500.0,0.00036986,2]
[310162849,1704384745582,-662.32,0.00036986,2]
[310162850,1704384745591,-830.54,0.00036986,2]
[310162851,1704384745601,-1824.67,0.00036986,2]
[310162852,1704384745610,-500.0,0.00036986,2]
[310162853,1704384745620,-931.95,0.00036986,2]
[310162854,1704384745634,-500.0,0.00036986,2]
[310162855,1704384745643,-500.0,0.00036986,2]
[310162856,1704384745653,-654.3,0.00036986,2]
[310162857,1704384745663,-500.0,0.00036986,2]
[310162858,1704384745672,-500.0,0.00036986,2]
[310162859,1704384745683,-1130.23,0.00036986,2]
[310162860,1704384745692,-559.43,0.00036986,2]
[310162861,1704384745702,-500.0,0.00036986,2]
[310162862,1704384745712,-1026.82,0.00036986,2]
[310162863,1704384745722,-586.09,0.00036986,2]
[310162864,1704384745732,-574.52,0.00036986,2]
[310162865,1704384745742,-593.19,0.00036986,2]
[310162866,1704384745751,-633.75,0.00036986,2]
[310162867,1704384745762,-731.33,0.00036986,2]
[310162868,1704384745772,-756.82,0.00036986,2]
[310162869,1704384745782,-500.0,0.00036986,2]
[310162870,1704384745792,-642.48,0.00036986,2]
[310162871,1704384745802,-812.26,0.00036986,2]
[310162872,1704384745812,-500.0,0.00036986,2]
[310162873,1704384745821,-995.06,0.00036986,2]
[310162874,1704384745831,-1428.61,0.00036986,2]
[310162875,1704384745841,-500.0,0.00036986,2]
[310162876,1704384745850,-500.0,0.00036986,2]
[310162877,1704384745860,-500.0,0.00036986,2]
[310162878,1704384745870,-719.19,0.00036986,2]
[310162879,1704384745882,-500.0,0.00036986,2]
[310162880,1704384745892,-966.27,0.00036986,2]
[310162881,1704384745902,-737.41,0.00036986,2]
[310162882,1704384745911,-683.25,0.00036986,2]
[310162883,1704384745922,-708.7,0.00036986,2]
[310162884,1704384745931,-1313.57,0.00036986,2]
[310162885,1704384745940,-537.81,0.00036986,2]
[310162886,1704384745949,-978.7,0.00036986,2]
[310162887,1704384745958,-500.0,0.00036986,2]
[310162888,1704384745968,-855.47,0.00036986,2]
[310162889,1704384745978,-500.0,0.00036986,2]
[310162890,1704384745987,-504.3,0.00036986,2]
[310162891,1704384745996,-500.0,0.00036986,2]
[310162892,1704384746006,-500.0,0.00036986,2]
[310162893,1704384746015,-758.78,0.00036986,2]
[310162894,1704384746024,-500.0,0.00036986,2]
[310162895,1704384746033,-1007.26,0.00036986,2]
[310162896,1704384746043,-500.0,0.00036986,2]
[310162897,1704384746052,-500.0,0.00036986,2]
[310162898,1704384746062,-500.0,0.00036986,2]
[310162899,1704384746071,-500.0,0.00036986,2]
[310162900,1704384746081,-691.87,0.00036986,2]
[310162901,1704384746091,-944.11,0.00036986,2]
[310162902,1704384746101,-500.0,0.00036986,2]
[310162903,1704384746110,-1634.31,0.00036986,2]
[310162904,1704384746120,-500.0,0.00036986,2]
[310162905,1704384746133,-1233.69,0.00036986,2]
[310162906,1704384746142,-1332.99,0.00036986,2]
[310162907,1704384746152,-275.59605811,0.00036986,2]
[310162908,1704384746161,-650.36,0.00036986,2]
[310162909,1704384746171,-1754.71,0.00036986,2]
[310162910,1704384746180,-602.68,0.00036986,2]
[310162911,1704384746190,-1493.68,0.00036986,2]
[310162912,1704384746200,-500.0,0.00036986,2]
[310162913,1704384746210,-705.76,0.00036986,2]
[310162914,1704384746219,-1386.7,0.00036986,2]
[310162915,1704384746228,-500.0,0.00036986,2]
[310162916,1704384746238,-1253.93,0.00036986,2]
[310162917,1704384746248,-712.45,0.00036986,2]
[310162918,1704384746258,-1385.49,0.00036986,2]
[310162919,1704384746267,-719.5,0.00036986,2]
[310162920,1704384746276,-795.9,0.00036986,2]
[310162921,1704384746285,-500.0,0.00036986,2]
[310162922,1704384746294,-702.74,0.00036986,2]
[310162923,1704384746304,-614.02,0.00036986,2]
[310162924,1704384746313,-782.01,0.00036986,2]
[310162925,1704384746323,-1144.21,0.00036986,2]
[310162926,1704384746332,-2346.06,0.00036986,2]
[310162927,1704384746342,-825.04,0.00036986,2]
[310162928,1704384746352,-759.74,0.00036986,2]
[310162929,1704384746362,-591.92,0.00036986,2]
[310162930,1704384746372,-1538.71,0.00036986,2]
[310162931,1704384746384,-1209.37,0.00036986,2]
[310162932,1704384746394,-500.0,0.00036986,2]
[310162933,1704384746404,-500.0,0.00036986,2]
[310162934,1704384746416,-1769.02,0.00036986,2]
[310162935,1704384746426,-1608.02,0.00036986,2]
[310162936,1704384746437,-866.14,0.00036986,2]
[310162937,1704384746447,-500.0,0.00036986,2]
[310162938,1704384746459,-597.7,0.00036986,2]
[310162939,1704384746469,-3238.36,0.00036986,2]
[310162940,1704384746478,-1312.71,0.00036986,2]
[310162941,1704384746488,-758.49,0.00036986,2]
[310162942,1704384746499,-861.13,0.00036986,2]
[310162943,1704384746508,-554.04,0.00036986,2]
[310162944,1704384746517,-500.0,0.00036986,2]
[310162945,1704384746526,-910.85,0.00036986,2]
[310162946,1704384746536,-647.07,0.00036986,2]
[310162947,1704384746546,-596.22,0.00036986,2]
[310162948,1704384746555,-840.62,0.00036986,2]
[310162949,1704384746564,-552.48,0.00036986,2]
[310162950,1704384746574,-859.39,0.00036986,2]
[310162951,1704384746584,-1225.89,0.00036986,2]
[310162952,1704384746593,-957.37,0.00036986,2]
[310162953,1704384746603,-765.17,0.00036986,2]
[310162954,1704384746612,-1445.4,0.00036986,2]
[310162955,1704384746621,-659.69,0.00036986,2]
[310162956,1704384746631,-500.0,0.00036986,2]
[310162957,1704384746640,-704.58,0.00036986,2]
[310162958,1704384746651,-562.44,0.00036986,2]
[310162959,1704384746661,-616.78,0.00036986,2]
[310162960,1704384746670,-683.51,0.00036986,2]
[310162961,1704384746680,-529.83,0.00036986,2]
[310162962,1704384746690,-661.23,0.00036986,2]
[310162963,1704384746699,-1859.78,0.00036986,4]
[310162964,1704384746709,-1859.78,0.00036986,4]
[310162965,1704384746718,-782.54,0.00036986,2]
[310162966,1704384746728,-1859.78,0.00036986,4]
[310162967,1704384746737,-588.15,0.00036986,2]
[310162968,1704384746747,-1859.78,0.00036986,4]
[310162969,1704384746756,-1195.11,0.00036986,2]
[310162970,1704384746765,-1859.78,0.00036986,4]
[310162971,1704384746775,-1859.78,0.00036986,4]
[310162972,1704384746784,-1859.78,0.00036986,4]
[310162973,1704384746793,-1859.78,0.00036986,4]
[310162974,1704384746802,-1859.78,0.00036986,4]
[310162975,1704384746812,-674.54,0.00036986,2]
[310162976,1704384746821,-1859.78,0.00036986,4]
[310162977,1704384746831,-1859.78,0.00036986,4]
[310162978,1704384746840,-1859.78,0.00036986,4]
[310162979,1704384746850,-1859.78,0.00036986,4]
[310162980,1704384746859,-1310.86,0.00036986,2]
[310162981,1704384746869,-1859.78,0.00036986,4]
[310162982,1704384746878,-1859.78,0.00036986,4]
[310162983,1704384746889,-1859.78,0.00036986,4]
[310162984,1704384746898,-831.54,0.00036986,2]
[310162985,1704384746907,-500.0,0.00036986,2]
[310162986,1704384746916,-1025.23,0.00036986,2]
[310162987,1704384746925,-1101.26,0.00036986,2]
[310162988,1704384746934,-785.28,0.00036986,2]
[310162989,1704384746944,-1065.41,0.00036986,2]
[310162990,1704384746953,-705.23,0.00036986,2]
[310162991,1704384746962,-1054.98,0.00036986,2]
[310162992,1704384746971,-995.7,0.00036986,2]
[310162993,1704384746981,-744.22,0.00036986,2]
[310162994,1704384746990,-1427.22,0.00036986,2]
[310162995,1704384747000,-1238.86,0.00036986,2]
[310162996,1704384747009,-887.92,0.00036986,2]
[310162997,1704384747018,-666.3,0.00036986,2]
[310162998,1704384747028,-742.23,0.00036986,2]
[310162999,1704384747037,-907.32,0.00036986,2]
[310163000,1704384747046,-500.0,0.00036986,2]
[310163001,1704384747056,-500.0,0.00036986,2]
[310163002,1704384747066,-702.86,0.00036986,2]
[310163003,1704384747077,-500.0,0.00036986,2]
[310163004,1704384747086,-945.74,0.00036986,2]
[310163005,1704384747095,-920.91,0.00036986,2]
[310163006,1704384747104,-672.89,0.00036986,2]
[310163007,1704384747114,-1400.63,0.00036986,2]
[310163008,1704384747123,-535.81,0.00036986,2]
[310163009,1704384747134,-500.0,0.00036986,2]
[310163010,1704384747143,-750.79,0.00036986,2]
[310163011,1704384747153,-523.13,0.00036986,2]
[310163012,1704384747162,-1057.28,0.00036986,2]
[310163013,1704384747171,-1335.29,0.00036986,2]
[310163014,1704384747181,-878.66,0.00036986,2]
[310163015,1704384747190,-1605.48,0.00036986,2]
[310163016,1704384747199,-847.37,0.00036986,2]
[310163017,1704384747209,-762.22,0.00036986,2]
[310163018,1704384747222,-338.30202342,0.00036986,2]
[310163019,1704384747232,-1736.22,0.00036986,2]
[310163020,1704384747241,-668.67,0.00036986,2]
[310163021,1704384747251,-1025.7,0.00036986,2]
[310163022,1704384747261,-530.17,0.00036986,2]
[310163023,1704384747270,-500.0,0.00036986,2]
[310163024,1704384747280,-500.0,0.00036986,2]
[310163025,1704384747290,-790.72,0.00036986,2]
[310163026,1704384747299,-500.0,0.00036986,2]
[310163027,1704384747309,-959.6,0.00036986,2]
[310163028,1704384747318,-516.03,0.00036986,2]
[310163029,1704384747328,-873.69,0.00036986,2]
[310163030,1704384747338,-506.97,0.00036986,2]
[310163031,1704384747347,-500.0,0.00036986,2]
[310163032,1704384747357,-1032.21,0.00036986,2]
[310163033,1704384747366,-529.99,0.00036986,2]
[310163034,1704384747375,-917.61,0.00036986,2]
[310163035,1704384747388,-500.0,0.00036986,2]
[310163036,1704384747397,-500.0,0.00036986,2]
[310163037,1704384747407,-610.7,0.00036986,2]
[310163038,1704384747416,-1220.03,0.00036986,2]
[310163039,1704384747425,-1169.06,0.00036986,2]
[310163040,1704384747435,-534.36,0.00036986,2]
[310163041,1704384747444,-631.5,0.00036986,2]
[310163042,1704384747453,-1507.11,0.00036986,2]
[310163043,1704384747463,-680.74,0.00036986,2]
[310163044,1704384747474,-207.52,0.00036986,2]
[310163045,1704384747484,-2169.33,0.00036986,2]
[310163046,1704384747495,-2030.09,0.00036986,2]
[310163047,1704384747506,-500.0,0.00036986,2]
[310163048,1704384747517,-1479.9,0.00036986,2]
[310163049,1704384747527,-500.0,0.00036986,2]
[310163050,1704384747537,-822.67,0.00036986,2]
[310163051,1704384747548,-3860.65,0.00036986,2]
[310163052,1704384747558,-1227.94,0.00036986,2]
[310163053,1704384747568,-1694.53,0.00036986,2]
[310163054,1704384747578,-654.78,0.00036986,2]
[310163055,1704384747588,-675.26,0.00036986,2]
[310163056,1704384747597,-1024.69,0.00036986,2]
[310163057,1704384747607,-2166.67,0.00036986,2]
[310163058,1704384747616,-500.0,0.00036986,2]
[310163059,1704384747627,-500.0,0.00036986,2]
[310163060,1704384747638,-644.95,0.00036986,2]
[310163061,1704384747648,-6237.21,0.00036986,2]
[310163062,1704384747657,-2236.13,0.00036986,2]
[310163063,1704384747667,-500.0,0.00036986,2]
[310163064,1704384747676,-1565.67,0.00036986,2]
[310163065,1704384747686,-748.67,0.00036986,2]
[310163066,1704384747696,-1806.87,0.00036986,2]
[310163067,1704384747706,-500.0,0.00036986,2]
[310163068,1704384747717,-1248.14,0.00036986,2]
[310163069,1704384747727,-7320.87,0.00036986,2]
[310163070,1704384747736,-500.0,0.00036986,2]
[310163071,1704384747745,-596.18,0.00036986,2]
[310163072,1704384747755,-712.06,0.00036986,2]
[310163073,1704384747765,-1160.21,0.00036986,2]
[310163074,1704384747775,-1547.86,0.00036986,2]
[310163075,1704384747784,-583.13,0.00036986,2]
[310163076,1704384747794,-1053.44,0.00036986,2]
[310163077,1704384747804,-11509.81,0.00036986,2]
[310163078,1704384747814,-4480.87,0.00036986,2]
[310163079,1704384747823,-500.0,0.00036986,2]
[310163080,1704384747833,-983.01,0.00036986,2]
[310163081,1704384747843,-1810.3,0.00036986,2]
[310163082,1704384747853,-22757.31,0.00036986,2]
[310163083,1704384747862,-500.0,0.00036986,2]
[310163084,1704384747872,-1146.84,0.00036986,2]
[310163085,1704384747882,-10482.29,0.00036986,2]
[310163086,1704384747892,-682.62,0.00036986,2]
[310163087,1704384747902,-646.84,0.00036986,2]
[310163088,1704384747912,-2236.54,0.00036986,2]
[310163089,1704384747922,-3000.04,0.00036986,2]
[310163090,1704384747931,-5241.12,0.00036986,2]
[310163091,1704384747941,-562.73,0.00036986,2]
[310163092,1704384747951,-1267.2,0.00036986,2]
[310163093,1704384747960,-570.19,0.00036986,2]
[310163094,1704384747970,-1044.59,0.00036986,2]
[310163095,1704384747979,-1733.36,0.00036986,2]
[310163096,1704384747990,-506.99,0.00036986,2]
[310163097,1704384747999,-2344.65,0.00036986,2]
[310163098,1704384748008,-500.0,0.00036986,2]
[310163099,1704384748018,-1148.98,0.00036986,2]
[310163100,1704384748028,-3957.27,0.00036986,2]
[310163101,1704384748038,-666.95,0.00036986,2]
[310163102,1704384748048,-4906.37,0.00036986,2]
[310163103,1704384748058,-3313.6,0.00036986,2]
[310163104,1704384748068,-470.40656564,0.00036986,2]
[310163105,1704384748077,-781.77,0.00036986,2]
[310163106,1704384748087,-500.0,0.00036986,2]
[310163107,1704384748097,-1046.86,0.00036986,2]
[310163108,1704384748107,-521.63,0.00036986,2]
[310163109,1704384748117,-3795.31,0.00036986,2]
[310163110,1704384748127,-680.9,0.00036986,2]
[310163111,1704384748137,-40011.89,0.00036986,2]
[310163112,1704384748147,-744.5,0.00036986,2]
[310163113,1704384748157,-941.09,0.00036986,2]
[310163114,1704384748167,-4440.8,0.00036986,2]
[310163115,1704384748176,-3124.54,0.00036986,2]
[310163116,1704384748186,-500.0,0.00036986,2]
[310163117,1704384748195,-529.49,0.00036986,2]
[310163118,1704384748204,-575.77,0.00036986,2]
[310163119,1704384748214,-500.0,0.00036986,2]
[310163120,1704384748224,-500.0,0.00036986,2]
[310163121,1704384748234,-500.0,0.00036986,2]
[310163122,1704384748245,-500.0,0.00036986,2]
[310163123,1704384748255,-566.18,0.00036986,2]
[310163124,1704384748265,-11794.58,0.00036986,2]
[310163125,1704384748276,-500.0,0.00036986,2]
[310163126,1704384748286,-500.0,0.00036986,2]
[310163127,1704384748296,-1416.07,0.00036986,2]
[310163128,1704384748307,-508.55152462,0.00036986,2]
[310163129,1704384748317,-1935.18,0.00036986,2]
[310163130,1704384748328,-1254.54,0.00036986,2]
[310163131,1704384748338,-2189.6,0.00036986,2]
[310163132,1704384748348,-500.0,0.00036986,2]
[310163133,1704384748358,-1093.1,0.00036986,2]
[310163134,1704384748369,-746.5,0.00036986,2]
[310163135,1704384748379,-1922.89,0.00036986,2]
[310163136,1704384748392,-500.0,0.00036986,2]
[310163137,1704384748402,-500.0,0.00036986,2]
[310163138,1704384748412,-3029.2,0.00036986,2]
[310163139,1704384748423,-1065.96,0.00036986,2]
[310163140,1704384748433,-500.0,0.00036986,2]
[310163141,1704384748444,-1007.95,0.00036986,2]
[310163142,1704384748454,-11096.0,0.00036986,2]
[310163143,1704384748465,-747.54,0.00036986,2]
[310163144,1704384748476,-760.32,0.00036986,2]
[310163145,1704384748487,-12156.16,0.00036986,2]
[310163146,1704384748498,-834.78,0.00036986,2]
[310163147,1704384748509,-1718.28,0.00036986,2]
[310163148,1704384748519,-611.3,0.00036986,2]
[310163149,1704384748529,-1413.99,0.00036986,2]
[310163150,1704384748540,-697.33,0.00036986,2]
[310163151,1704384748551,-697.67,0.00036986,2]
[310163152,1704384748562,-1281.58,0.00036986,2]
[310163153,1704384748572,-520.32,0.00036986,2]
[310163154,1704384748583,-883.92,0.00036986,2]
[310163155,1704384748595,-1163.39,0.00036986,2]
[310163156,1704384748605,-1053.47,0.00036986,2]
[310163157,1704384748614,-726.31,0.00036986,2]
[310163158,1704384748624,-3994.67,0.00036986,2]
[310163159,1704384748634,-773.87,0.00036986,2]
[310163160,1704384748644,-500.0,0.00036986,2]
[310163161,1704384748654,-528.67,0.00036986,2]
[310163162,1704384748664,-891.04,0.00036986,2]
[310163163,1704384748673,-2976.44,0.00036986,2]
[310163164,1704384748683,-902.18,0.00036986,2]
[310163165,1704384748693,-1129.74,0.00036986,2]
[310163166,1704384748702,-8714.16,0.00036986,2]
[310163167,1704384748711,-709.87,0.00036986,2]
[310163168,1704384748721,-573.28,0.00036986,2]
[310163169,1704384748731,-617.6,0.00036986,2]
[310163170,1704384748740,-539.92,0.00036986,2]
[310163171,1704384748750,-2912.75,0.00036986,2]
[310163172,1704384748760,-2375.82,0.00036986,2]
[310163173,1704384748770,-500.0,0.00036986,2]
[310163174,1704384748779,-880.41,0.00036986,2]
[310163175,1704384748789,-500.0,0.00036986,2]
[310163176,1704384748799,-500.0,0.00036986,2]
[310163177,1704384748809,-990.05,0.00036986,2]
[310163178,1704384748819,-712.84,0.00036986,2]
[310163179,1704384748829,-500.0,0.00036986,2]
[310163180,1704384748838,-1899.71,0.00036986,2]
[310163181,1704384748848,-704.89,0.00036986,2]
[310163182,1704384748858,-1360.68,0.00036986,2]
[310163183,1704384748868,-1752.91,0.00036986,2]
[310163184,1704384748877,-846.97,0.00036986,2]
[310163185,1704384748888,-500.0,0.00036986,2]
[310163186,1704384748898,-4094.39,0.00036986,2]
[310163187,1704384748909,-1446.57,0.00036986,2]
[310163188,1704384748920,-561.91,0.00036986,2]
[310163189,1704384748930,-1589.28,0.00036986,2]
[310163190,1704384748940,-500.0,0.00036986,2]
[310163191,1704384748950,-1546.98,0.00036986,2]
[310163192,1704384748960,-834.84,0.00036986,2]
[310163193,1704384748971,-1093.14,0.00036986,2]
[310163194,1704384748981,-564.13,0.00036986,2]
[310163195,1704384748991,-1945.09,0.00036986,2]
[310163196,1704384749001,-893.8,0.00036986,2]
[310163197,1704384749011,-2073.94,0.00036986,2]
[310163198,1704384749022,-900.7,0.00036986,2]
[310163199,1704384749032,-12496.39,0.00036986,2]
[310163200,1704384749042,-561.96,0.00036986,2]
[310163201,1704384749052,-514.0,0.00036986,2]
[310163202,1704384749062,-500.0,0.00036986,2]
[310163203,1704384749072,-1205.79,0.00036986,2]
[310163204,1704384749083,-621.58,0.00036986,2]
[310163205,1704384749093,-500.0,0.00036986,2]
[310163206,1704384749103,-881.27,0.00036986,2]
[310163207,1704384749113,-10382.29,0.00036986,2]
[310163208,1704384749123,-1450.8,0.00036986,2]
[310163209,1704384749134,-3417.84,0.00036986,2]
[310163210,1704384749143,-987.12,0.00036986,2]
[310163211,1704384749153,-578.21,0.00036986,2]
[310163212,1704384749164,-552.04,0.00036986,2]
[310163213,1704384749175,-656.43,0.00036986,2]
[310163214,1704384749185,-940.22,0.00036986,2]
[310163215,1704384749200,-1439.1,0.00036986,2]
[310163216,1704384749210,-1079.52,0.00036986,2]
[310163217,1704384749220,-2270.39,0.00036986,2]
[310163218,1704384749230,-1396.67,0.00036986,2]
[310163219,1704384749240,-645.99,0.00036986,2]
[310163220,1704384749249,-5839.49,0.00036986,2]
[310163221,1704384749259,-1088.28,0.00036986,2]
[310163222,1704384749269,-500.0,0.00036986,2]